[Event "Late-Titled-Tuesday-Blitz-March-19-2024"]
[Site "Chess.com"]
[Date "2024.03.19"]
[Round "8"]
[White "balack95"]
[Black "Arlo2024"]
[Result "1/2-1/2"]
[WhiteElo "2432"]
[BlackElo "2312"]
[TimeControl "180+1"]
[EndTime "15:26:53 PDT"]
[Termination "Game drawn - insufficient material"]

1. d4 {[%clk 0:03:00.9]} 1... Nf6 {[%clk 0:02:59.6]} 2. c4 {[%clk 0:03:01.3]}
2... c5 {[%clk 0:03:00]} 3. d5 {[%clk 0:03:01.5]} 3... b5 {[%clk 0:03:00.5]} 4.
cxb5 {[%clk 0:03:01.4]} 4... a6 {[%clk 0:03:01.2]} 5. e3 {[%clk 0:02:59.8]} 5...
g6 {[%clk 0:02:58.9]} 6. Nc3 {[%clk 0:02:59.1]} 6... Bg7 {[%clk 0:02:58.6]} 7.
a4 {[%clk 0:02:59.8]} 7... O-O {[%clk 0:02:58]} 8. Bc4 {[%clk 0:03:00.3]} 8...
axb5 {[%clk 0:02:55.7]} 9. Nxb5 {[%clk 0:02:59.6]} 9... d6 {[%clk 0:02:56.2]}
10. Nf3 {[%clk 0:02:58.1]} 10... Nbd7 {[%clk 0:02:56.7]} 11. O-O {[%clk
0:02:55.7]} 11... Nb6 {[%clk 0:02:57.4]} 12. Be2 {[%clk 0:02:42.8]} 12... Nbxd5
{[%clk 0:02:48]} 13. e4 {[%clk 0:02:41.1]} 13... Nb4 {[%clk 0:02:46.8]} 14. e5
{[%clk 0:02:40.4]} 14... dxe5 {[%clk 0:02:33.9]} 15. Qxd8 {[%clk 0:02:38.5]}
15... Rxd8 {[%clk 0:02:33.6]} 16. Nxe5 {[%clk 0:02:34]} 16... Bb7 {[%clk
0:02:13.9]} 17. Be3 {[%clk 0:02:32]} 17... Nc2 {[%clk 0:02:09.3]} 18. Rac1
{[%clk 0:02:22.6]} 18... Nxe3 {[%clk 0:02:07.7]} 19. fxe3 {[%clk 0:02:23.5]}
19... Nd5 {[%clk 0:01:58.9]} 20. Nxf7 {[%clk 0:02:19.3]} 20... Nxe3 {[%clk
0:01:54.3]} 21. Nxd8 {[%clk 0:02:17.1]} 21... Bd5 {[%clk 0:01:40.5]} 22. Nc7
{[%clk 0:02:11.6]} 22... Rxd8 {[%clk 0:01:30.1]} 23. Nxd5 {[%clk 0:02:10.3]}
23... Rxd5 {[%clk 0:01:22.3]} 24. b3 {[%clk 0:02:01.2]} 24... Nxf1 {[%clk
0:01:18.3]} 25. Bc4 {[%clk 0:01:58.2]} 25... Ne3 {[%clk 0:01:12.7]} 26. Bxd5+
{[%clk 0:01:58.7]} 26... Nxd5 {[%clk 0:01:11.5]} 27. Kf1 {[%clk 0:01:57.5]}
27... Bd4 {[%clk 0:01:11.4]} 28. Ke2 {[%clk 0:01:54.5]} 28... Kf7 {[%clk
0:01:06.7]} 29. Kd3 {[%clk 0:01:54.9]} 29... Ke6 {[%clk 0:01:04.4]} 30. Kc4
{[%clk 0:01:54.1]} 30... Kd6 {[%clk 0:01:03.4]} 31. a5 {[%clk 0:01:47.5]} 31...
Kc6 {[%clk 0:01:02.3]} 32. a6 {[%clk 0:01:45.4]} 32... Ne3+ {[%clk 0:00:54.4]}
33. Kd3 {[%clk 0:01:45.9]} 33... Kb6 {[%clk 0:00:53.5]} 34. g3 {[%clk
0:01:34.5]} 34... Kxa6 {[%clk 0:00:53.1]} 35. b4 {[%clk 0:01:33.7]} 35... Kb5
{[%clk 0:00:46.7]} 36. bxc5 {[%clk 0:01:33.3]} 36... Bxc5 {[%clk 0:00:46.1]} 37.
Ke4 {[%clk 0:01:33.9]} 37... Kc6 {[%clk 0:00:31.9]} 38. Ke5 {[%clk 0:01:31.7]}
38... Ng4+ {[%clk 0:00:29.4]} 39. Ke6 {[%clk 0:01:32]} 39... Nxh2 {[%clk
0:00:28.4]} 40. Rh1 {[%clk 0:01:32.7]} 40... Nf3 {[%clk 0:00:20.7]} 41. Kf7
{[%clk 0:01:28.8]} 41... Bd6 {[%clk 0:00:18.4]} 42. Ke6 {[%clk 0:01:22.7]} 42...
Bxg3 {[%clk 0:00:16.8]} 43. Kxe7 {[%clk 0:01:21]} 43... h5 {[%clk 0:00:15.8]}
44. Kf6 {[%clk 0:01:20.1]} 44... g5 {[%clk 0:00:15.4]} 45. Rxh5 {[%clk 0:01:19]}
45... Bf4 {[%clk 0:00:14.4]} 46. Kf5 {[%clk 0:01:16.5]} 46... Kd5 {[%clk
0:00:14.4]} 47. Rh8 {[%clk 0:01:15.3]} 47... Ne5 {[%clk 0:00:13.2]} 48. Rd8+
{[%clk 0:01:14.5]} 48... Kc4 {[%clk 0:00:12.4]} 49. Rg8 {[%clk 0:01:10.2]} 49...
Kd4 {[%clk 0:00:12.2]} 50. Rxg5 {[%clk 0:01:09.6]} 50... Bxg5 {[%clk 0:00:12.4]}
51. Kxg5 {[%clk 0:01:10.5]} 1/2-1/2

[Event "Late-Titled-Tuesday-Blitz-March-19-2024"]
[Site "Chess.com"]
[Date "2024.03.19"]
[Round "8"]
[White "EcosseKillie"]
[Black "picturesquecheck"]
[Result "1-0"]
[WhiteElo "2333"]
[BlackElo "2406"]
[TimeControl "180+1"]
[EndTime "15:26:57 PDT"]
[Termination "EcosseKillie won by resignation"]

1. d4 {[%clk 0:03:00.9]} 1... Nf6 {[%clk 0:02:55.8]} 2. Bg5 {[%clk 0:03:00.5]}
2... Ne4 {[%clk 0:02:55.3]} 3. Bf4 {[%clk 0:03:00.8]} 3... d5 {[%clk 0:02:55.3]}
4. e3 {[%clk 0:03:01.1]} 4... e6 {[%clk 0:02:54.6]} 5. Bd3 {[%clk 0:03:00.4]}
5... Nf6 {[%clk 0:02:53.9]} 6. Nf3 {[%clk 0:02:56.9]} 6... Bd6 {[%clk
0:02:53.3]} 7. Nbd2 {[%clk 0:02:52]} 7... O-O {[%clk 0:02:53.1]} 8. O-O {[%clk
0:02:50.3]} 8... c5 {[%clk 0:02:41.5]} 9. c3 {[%clk 0:02:49.7]} 9... Nc6 {[%clk
0:02:39.8]} 10. Ne5 {[%clk 0:02:43.9]} 10... Qc7 {[%clk 0:02:32.5]} 11. Ndf3
{[%clk 0:02:41.9]} 11... Nd7 {[%clk 0:02:30.3]} 12. Nxc6 {[%clk 0:02:40.2]}
12... bxc6 {[%clk 0:02:25.3]} 13. Bxd6 {[%clk 0:02:33.1]} 13... Qxd6 {[%clk
0:02:24.5]} 14. e4 {[%clk 0:02:29.8]} 14... cxd4 {[%clk 0:02:22.5]} 15. Nxd4
{[%clk 0:02:22.4]} 15... Nc5 {[%clk 0:02:14.7]} 16. exd5 {[%clk 0:02:21]} 16...
cxd5 {[%clk 0:02:09.5]} 17. Be2 {[%clk 0:02:20.4]} 17... Bb7 {[%clk 0:02:03.9]}
18. Bf3 {[%clk 0:02:11.5]} 18... Rab8 {[%clk 0:01:57.8]} 19. b3 {[%clk
0:02:06.1]} 19... Nd7 {[%clk 0:01:54.6]} 20. g3 {[%clk 0:01:53.5]} 20... Nf6
{[%clk 0:01:43.8]} 21. Bg2 {[%clk 0:01:51]} 21... Qb6 {[%clk 0:01:35.7]} 22. Rc1
{[%clk 0:01:44]} 22... Rfd8 {[%clk 0:01:34.1]} 23. h3 {[%clk 0:01:36.8]} 23...
g6 {[%clk 0:01:31.5]} 24. Qd2 {[%clk 0:01:31.2]} 24... e5 {[%clk 0:01:26.8]} 25.
Nf3 {[%clk 0:01:22.7]} 25... Qe6 {[%clk 0:01:23.7]} 26. Rfe1 {[%clk 0:01:13.7]}
26... Ne4 {[%clk 0:01:22.3]} 27. Qb2 {[%clk 0:01:14.3]} 27... f6 {[%clk
0:01:21.7]} 28. c4 {[%clk 0:01:13.5]} 28... Qf7 {[%clk 0:01:13.2]} 29. cxd5
{[%clk 0:01:10.9]} 29... Bxd5 {[%clk 0:01:13.3]} 30. Nxe5 {[%clk 0:01:09.3]}
30... Qb7 {[%clk 0:00:58.6]} 31. Ng4 {[%clk 0:01:01.3]} 31... f5 {[%clk
0:00:48.3]} 32. Bxe4 {[%clk 0:01:00.7]} 32... fxg4 {[%clk 0:00:42.8]} 33. Bxd5+
{[%clk 0:00:56]} 33... Qxd5 {[%clk 0:00:41.7]} 34. hxg4 {[%clk 0:00:56.9]} 34...
Qd7 {[%clk 0:00:37.4]} 35. Qe2 {[%clk 0:00:46.7]} 35... Rb4 {[%clk 0:00:26.8]}
36. Rcd1 {[%clk 0:00:44.7]} 36... Rd4 {[%clk 0:00:26.1]} 37. Rxd4 {[%clk
0:00:42.8]} 37... Qxd4 {[%clk 0:00:27]} 38. Qe6+ {[%clk 0:00:43.2]} 38... Kh8
{[%clk 0:00:25.1]} 39. Qe5+ {[%clk 0:00:42.7]} 39... Qxe5 {[%clk 0:00:24.3]} 40.
Rxe5 {[%clk 0:00:43.6]} 40... Rd2 {[%clk 0:00:24.8]} 41. Ra5 {[%clk 0:00:43.8]}
1-0

[Event "Late-Titled-Tuesday-Blitz-March-19-2024"]
[Site "Chess.com"]
[Date "2024.03.19"]
[Round "8"]
[White "rychessmaster1"]
[Black "EsmeraldasAnderson03"]
[Result "0-1"]
[WhiteElo "2740"]
[BlackElo "2581"]
[TimeControl "180+1"]
[EndTime "15:26:58 PDT"]
[Termination "EsmeraldasAnderson03 won by resignation"]

1. d4 {[%clk 0:03:00.9]} 1... d5 {[%clk 0:02:59.3]} 2. c4 {[%clk 0:03:00.9]}
2... dxc4 {[%clk 0:03:00.2]} 3. Nf3 {[%clk 0:03:00.5]} 3... Nf6 {[%clk
0:03:00.6]} 4. e3 {[%clk 0:03:01.1]} 4... e6 {[%clk 0:03:01.5]} 5. Bxc4 {[%clk
0:03:01.4]} 5... a6 {[%clk 0:03:02.3]} 6. O-O {[%clk 0:03:00.9]} 6... c5 {[%clk
0:03:02.9]} 7. dxc5 {[%clk 0:02:56.9]} 7... Qxd1 {[%clk 0:03:02.5]} 8. Rxd1
{[%clk 0:02:57.8]} 8... Bxc5 {[%clk 0:03:02.6]} 9. Be2 {[%clk 0:02:58]} 9... b6
{[%clk 0:03:02.2]} 10. a3 {[%clk 0:02:51.8]} 10... Bb7 {[%clk 0:03:01.9]} 11. b4
{[%clk 0:02:51.7]} 11... Be7 {[%clk 0:03:02.1]} 12. Bb2 {[%clk 0:02:51.5]} 12...
Nbd7 {[%clk 0:03:01.7]} 13. Nbd2 {[%clk 0:02:48.6]} 13... Rc8 {[%clk 0:02:57.7]}
14. Rac1 {[%clk 0:02:48.2]} 14... O-O {[%clk 0:02:58]} 15. Nc4 {[%clk
0:02:36.5]} 15... b5 {[%clk 0:02:40.3]} 16. Nce5 {[%clk 0:02:25.2]} 16... Nxe5
{[%clk 0:02:37.6]} 17. Nxe5 {[%clk 0:02:24.6]} 17... Rxc1 {[%clk 0:02:38.2]} 18.
Rxc1 {[%clk 0:02:24.9]} 18... Rc8 {[%clk 0:02:38.4]} 19. Rxc8+ {[%clk
0:02:22.3]} 19... Bxc8 {[%clk 0:02:39.3]} 20. Bf3 {[%clk 0:02:21.8]} 20... Nd5
{[%clk 0:02:32.5]} 21. Nc6 {[%clk 0:02:21.3]} 21... Bf8 {[%clk 0:02:11.1]} 22.
Bd4 {[%clk 0:02:06.7]} 22... f6 {[%clk 0:02:04.5]} 23. Bc5 {[%clk 0:01:56.1]}
23... Bxc5 {[%clk 0:01:55.9]} 24. bxc5 {[%clk 0:01:57]} 24... Kf7 {[%clk
0:01:55.9]} 25. Kf1 {[%clk 0:01:45.2]} 25... Nc7 {[%clk 0:01:30.9]} 26. Ke2
{[%clk 0:01:19.5]} 26... e5 {[%clk 0:01:30.8]} 27. Kd2 {[%clk 0:01:12.1]} 27...
Be6 {[%clk 0:01:19.1]} 28. e4 {[%clk 0:00:39.6]} 28... Ke8 {[%clk 0:01:14.7]}
29. Kc3 {[%clk 0:00:32.5]} 29... Kd7 {[%clk 0:01:11.5]} 30. Nb4 {[%clk 0:00:33]}
30... a5 {[%clk 0:01:09.5]} 31. Nd5 {[%clk 0:00:33.5]} 31... Kc6 {[%clk
0:01:10]} 32. Ne3 {[%clk 0:00:07]} 32... Kxc5 {[%clk 0:01:09.4]} 33. Be2 {[%clk
0:00:07.7]} 33... b4+ {[%clk 0:01:06.5]} 34. axb4+ {[%clk 0:00:08.6]} 34...
axb4+ {[%clk 0:01:07.1]} 35. Kb2 {[%clk 0:00:09.5]} 35... Nb5 {[%clk 0:01:06.9]}
36. Nc2 {[%clk 0:00:09.8]} 36... Nd4 {[%clk 0:01:05.7]} 37. Bd1 {[%clk
0:00:02.8]} 37... Nxc2 {[%clk 0:01:01.7]} 38. Bxc2 {[%clk 0:00:03.3]} 38... Kd4
{[%clk 0:01:01.7]} 39. Bb1 {[%clk 0:00:02.4]} 39... Bc4 {[%clk 0:01:00.4]} 40.
g3 {[%clk 0:00:02.3]} 40... g5 {[%clk 0:00:57.5]} 41. f3 {[%clk 0:00:02.5]}
41... Ke3 {[%clk 0:00:56.7]} 42. f4 {[%clk 0:00:03]} 42... gxf4 {[%clk
0:00:54.5]} 43. gxf4 {[%clk 0:00:03.7]} 43... exf4 {[%clk 0:00:55.4]} 0-1

[Event "Late-Titled-Tuesday-Blitz-March-19-2024"]
[Site "Chess.com"]
[Date "2024.03.19"]
[Round "8"]
[White "protectiago"]
[Black "mirochka"]
[Result "0-1"]
[WhiteElo "2072"]
[BlackElo "2269"]
[TimeControl "180+1"]
[EndTime "15:26:58 PDT"]
[Termination "mirochka won on time"]

1. d4 {[%clk 0:03:00]} 1... d5 {[%clk 0:02:57]} 2. c4 {[%clk 0:02:59.8]} 2... e6
{[%clk 0:02:55.9]} 3. g3 {[%clk 0:02:58.9]} 3... Nf6 {[%clk 0:02:53.7]} 4. Nf3
{[%clk 0:02:59]} 4... dxc4 {[%clk 0:02:53.6]} 5. Bg2 {[%clk 0:02:53.2]} 5... Nc6
{[%clk 0:02:47.5]} 6. O-O {[%clk 0:02:43.2]} 6... a6 {[%clk 0:02:47.2]} 7. Nc3
{[%clk 0:02:35.7]} 7... Rb8 {[%clk 0:02:42.8]} 8. a4 {[%clk 0:02:34.3]} 8... Be7
{[%clk 0:02:34.3]} 9. e4 {[%clk 0:02:33.3]} 9... O-O {[%clk 0:02:29.3]} 10. e5
{[%clk 0:02:33.3]} 10... Nd5 {[%clk 0:02:27.8]} 11. Ne4 {[%clk 0:02:27.3]} 11...
Na5 {[%clk 0:02:03.9]} 12. Qc2 {[%clk 0:02:22.3]} 12... Nb4 {[%clk 0:01:57.8]}
13. Qe2 {[%clk 0:02:18.4]} 13... Nb3 {[%clk 0:01:51.5]} 14. Rb1 {[%clk
0:01:51.5]} 14... b5 {[%clk 0:01:47.9]} 15. Bg5 {[%clk 0:01:31.4]} 15... Bxg5
{[%clk 0:01:34.4]} 16. Nfxg5 {[%clk 0:01:17]} 16... h6 {[%clk 0:01:34.7]} 17.
Qh5 {[%clk 0:01:09.2]} 17... Bb7 {[%clk 0:01:24.1]} 18. axb5 {[%clk 0:00:51.5]}
18... axb5 {[%clk 0:01:23.6]} 19. Rfd1 {[%clk 0:00:44.7]} 19... Nd3 {[%clk
0:01:09.2]} 20. h4 {[%clk 0:00:40.3]} 20... Qxd4 {[%clk 0:01:03.9]} 21. Rf1
{[%clk 0:00:17.8]} 21... Qxe5 {[%clk 0:00:51.5]} 22. Qg4 {[%clk 0:00:15.4]}
22... hxg5 {[%clk 0:00:46.9]} 23. hxg5 {[%clk 0:00:15.5]} 23... Bxe4 {[%clk
0:00:41.5]} 24. Bxe4 {[%clk 0:00:15.5]} 24... Nd2 {[%clk 0:00:37.5]} 25. Bxd3
{[%clk 0:00:08.7]} 25... cxd3 {[%clk 0:00:38.4]} 26. Rfe1 {[%clk 0:00:08.1]}
26... Qd5 {[%clk 0:00:33.3]} 27. Re3 {[%clk 0:00:06.8]} 27... Nxb1 {[%clk
0:00:32]} 28. Qh5 {[%clk 0:00:04.1]} 28... g6 {[%clk 0:00:29.9]} 29. Qh6 {[%clk
0:00:02.1]} 29... d2 {[%clk 0:00:30.2]} 0-1

[Event "Late-Titled-Tuesday-Blitz-March-19-2024"]
[Site "Chess.com"]
[Date "2024.03.19"]
[Round "8"]
[White "bescmelasti"]
[Black "Seochesspie"]
[Result "1-0"]
[WhiteElo "2699"]
[BlackElo "2851"]
[TimeControl "180+1"]
[EndTime "15:27:05 PDT"]
[Termination "bescmelasti won by resignation"]

1. e4 {[%clk 0:03:00.9]} 1... c5 {[%clk 0:02:59.7]} 2. Nf3 {[%clk 0:03:01.3]}
2... d6 {[%clk 0:03:00]} 3. d4 {[%clk 0:03:00.6]} 3... cxd4 {[%clk 0:03:00.3]}
4. Nxd4 {[%clk 0:03:01.5]} 4... Nf6 {[%clk 0:03:00.9]} 5. Nc3 {[%clk 0:03:02.2]}
5... a6 {[%clk 0:03:01.4]} 6. g3 {[%clk 0:03:02.8]} 6... e5 {[%clk 0:02:56.9]}
7. Nde2 {[%clk 0:03:03.3]} 7... h5 {[%clk 0:02:51]} 8. Bg5 {[%clk 0:02:59.5]}
8... Be7 {[%clk 0:02:50.5]} 9. Bg2 {[%clk 0:02:59.4]} 9... Be6 {[%clk
0:02:49.6]} 10. Qd2 {[%clk 0:02:54.1]} 10... Nbd7 {[%clk 0:02:47.4]} 11. a4
{[%clk 0:02:50.9]} 11... Rc8 {[%clk 0:02:44]} 12. O-O {[%clk 0:02:50.1]} 12...
Nh7 {[%clk 0:02:33.2]} 13. Bxe7 {[%clk 0:02:46]} 13... Qxe7 {[%clk 0:02:34.1]}
14. Rfd1 {[%clk 0:02:45.1]} 14... Rc6 {[%clk 0:02:33.9]} 15. Nd5 {[%clk
0:02:39.3]} 15... Bxd5 {[%clk 0:02:33.5]} 16. exd5 {[%clk 0:02:39.8]} 16... Rc8
{[%clk 0:02:29.8]} 17. a5 {[%clk 0:02:33.2]} 17... h4 {[%clk 0:02:28]} 18. Ra4
{[%clk 0:01:46.9]} 18... hxg3 {[%clk 0:02:19.9]} 19. hxg3 {[%clk 0:01:47.1]}
19... Nhf6 {[%clk 0:02:19.1]} 20. Nc3 {[%clk 0:01:43.1]} 20... Nc5 {[%clk
0:02:13.1]} 21. Rb4 {[%clk 0:01:43.3]} 21... O-O {[%clk 0:02:09.1]} 22. Na4
{[%clk 0:01:36]} 22... Nxa4 {[%clk 0:02:07]} 23. Rxa4 {[%clk 0:01:36.9]} 23...
Nd7 {[%clk 0:01:57.2]} 24. Rh4 {[%clk 0:01:31.1]} 24... Rfd8 {[%clk 0:01:45.1]}
25. c4 {[%clk 0:01:26.8]} 25... Qf6 {[%clk 0:01:35.6]} 26. b4 {[%clk 0:01:19.9]}
26... g6 {[%clk 0:01:31.7]} 27. Bh3 {[%clk 0:01:10.1]} 27... Rc7 {[%clk
0:01:26.4]} 28. Bxd7 {[%clk 0:00:58.8]} 28... Rdxd7 {[%clk 0:01:23.9]} 29. Kg2
{[%clk 0:00:58.1]} 29... Rd8 {[%clk 0:00:43.4]} 30. Rdh1 {[%clk 0:00:56.5]}
30... Rdc8 {[%clk 0:00:43.8]} 31. Qe2 {[%clk 0:00:45.4]} 31... Kf8 {[%clk
0:00:40.3]} 32. Re4 {[%clk 0:00:32.1]} 32... Kg7 {[%clk 0:00:36.5]} 33. Reh4
{[%clk 0:00:31.7]} 33... Kf8 {[%clk 0:00:36.6]} 34. f4 {[%clk 0:00:19.5]} 34...
exf4 {[%clk 0:00:24.7]} 35. Rh8+ {[%clk 0:00:16.8]} 1-0

[Event "Late-Titled-Tuesday-Blitz-March-19-2024"]
[Site "Chess.com"]
[Date "2024.03.19"]
[Round "8"]
[White "ChempionBg"]
[Black "Bugcrusher"]
[Result "1/2-1/2"]
[WhiteElo "2343"]
[BlackElo "2465"]
[TimeControl "180+1"]
[EndTime "15:27:11 PDT"]
[Termination "Game drawn by repetition"]

1. d4 {[%clk 0:02:41.3]} 1... e6 {[%clk 0:02:59]} 2. c4 {[%clk 0:02:39.1]} 2...
Nf6 {[%clk 0:02:58.8]} 3. Nf3 {[%clk 0:02:37.3]} 3... Nc6 {[%clk 0:02:55]} 4. g3
{[%clk 0:02:36.8]} 4... d5 {[%clk 0:02:53.9]} 5. Bg2 {[%clk 0:02:36.7]} 5...
dxc4 {[%clk 0:02:54.1]} 6. O-O {[%clk 0:02:36.6]} 6... Rb8 {[%clk 0:02:51.6]} 7.
Nc3 {[%clk 0:02:27]} 7... b5 {[%clk 0:02:51.1]} 8. e4 {[%clk 0:02:21.6]} 8...
Be7 {[%clk 0:02:49.4]} 9. d5 {[%clk 0:02:20.5]} 9... exd5 {[%clk 0:02:48.5]} 10.
exd5 {[%clk 0:02:20.7]} 10... Nb4 {[%clk 0:02:49]} 11. Nd4 {[%clk 0:02:19.1]}
11... a6 {[%clk 0:02:44.7]} 12. a3 {[%clk 0:02:17.7]} 12... Nd3 {[%clk
0:02:44.3]} 13. Nc6 {[%clk 0:02:16.9]} 13... Qd6 {[%clk 0:02:34.5]} 14. Nxb8
{[%clk 0:02:15.4]} 14... O-O {[%clk 0:02:34.4]} 15. Nc6 {[%clk 0:02:13.8]} 15...
Bb7 {[%clk 0:02:30.3]} 16. Nxe7+ {[%clk 0:02:04.5]} 16... Qxe7 {[%clk
0:02:30.2]} 17. d6 {[%clk 0:02:04.6]} 17... cxd6 {[%clk 0:02:29.2]} 18. Bg5
{[%clk 0:01:57.3]} 18... Bxg2 {[%clk 0:02:28.3]} 19. Kxg2 {[%clk 0:01:57.4]}
19... h6 {[%clk 0:02:25.9]} 20. Bxf6 {[%clk 0:01:56.4]} 20... Qxf6 {[%clk
0:02:26.2]} 21. Qf3 {[%clk 0:01:51.7]} 21... Qxf3+ {[%clk 0:02:24.2]} 22. Kxf3
{[%clk 0:01:51.5]} 22... Nxb2 {[%clk 0:02:25.1]} 23. Rab1 {[%clk 0:01:44.1]}
23... Nd3 {[%clk 0:02:23.8]} 24. Nd5 {[%clk 0:01:40.8]} 24... Re8 {[%clk
0:02:18.4]} 25. Nc7 {[%clk 0:01:37.8]} 25... Re5 {[%clk 0:02:05.7]} 26. Nxa6
{[%clk 0:01:29.5]} 26... Rf5+ {[%clk 0:02:00.1]} 27. Ke3 {[%clk 0:01:24.7]}
27... Re5+ {[%clk 0:01:59.2]} 28. Kd2 {[%clk 0:01:18.5]} 28... Rd5 {[%clk
0:01:59.2]} 29. Nc7 {[%clk 0:01:15.6]} 29... Rc5 {[%clk 0:01:59.3]} 30. Nxb5
{[%clk 0:01:14.9]} 30... d5 {[%clk 0:01:59.5]} 31. Nd4 {[%clk 0:01:04.7]} 31...
Ra5 {[%clk 0:01:58.1]} 32. Nc2 {[%clk 0:00:57.8]} 32... Nc5 {[%clk 0:01:51.8]}
33. Rb8+ {[%clk 0:00:53.8]} 33... Kh7 {[%clk 0:01:51.4]} 34. Rfb1 {[%clk
0:00:53.3]} 34... Ne4+ {[%clk 0:01:51.4]} 35. Ke3 {[%clk 0:00:49.5]} 35... Nc3
{[%clk 0:01:50.8]} 36. R1b7 {[%clk 0:00:47.3]} 36... Nd1+ {[%clk 0:01:50.3]} 37.
Kd2 {[%clk 0:00:38.7]} 37... Nxf2 {[%clk 0:01:49.5]} 38. Rb5 {[%clk 0:00:37.3]}
38... Ne4+ {[%clk 0:01:47.8]} 39. Ke3 {[%clk 0:00:34.7]} 39... Ra6 {[%clk
0:01:37.9]} 40. Rxd5 {[%clk 0:00:32.2]} 40... Nc3 {[%clk 0:01:38.2]} 41. Rc5
{[%clk 0:00:26]} 41... Re6+ {[%clk 0:01:37.1]} 42. Kf3 {[%clk 0:00:20.5]} 42...
Rf6+ {[%clk 0:01:37]} 43. Kg2 {[%clk 0:00:16.6]} 43... Nd1 {[%clk 0:01:37.5]}
44. Rxc4 {[%clk 0:00:14.8]} 44... Rf2+ {[%clk 0:01:34]} 45. Kg1 {[%clk 0:00:15]}
45... Rd2 {[%clk 0:01:29.6]} 46. a4 {[%clk 0:00:12.5]} 46... Nf2 {[%clk
0:01:22.2]} 47. a5 {[%clk 0:00:12.1]} 47... Nh3+ {[%clk 0:01:22.5]} 48. Kf1
{[%clk 0:00:12.2]} 48... Ng5 {[%clk 0:01:20.9]} 49. a6 {[%clk 0:00:11.1]} 49...
Nf3 {[%clk 0:01:21]} 50. a7 {[%clk 0:00:10.3]} 50... Nxh2+ {[%clk 0:01:21]} 51.
Ke1 {[%clk 0:00:06.6]} 51... Nf3+ {[%clk 0:01:21]} 52. Kf1 {[%clk 0:00:06.9]}
52... Nh2+ {[%clk 0:01:14.2]} 53. Kg1 {[%clk 0:00:05.6]} 53... Nf3+ {[%clk
0:01:14.1]} 54. Kf1 {[%clk 0:00:06]} 54... Nh2+ {[%clk 0:01:13.5]} 1/2-1/2

[Event "Late-Titled-Tuesday-Blitz-March-19-2024"]
[Site "Chess.com"]
[Date "2024.03.19"]
[Round "8"]
[White "Supelyel"]
[Black "jodarmarlon1985"]
[Result "1/2-1/2"]
[WhiteElo "2383"]
[BlackElo "2290"]
[TimeControl "180+1"]
[EndTime "15:27:16 PDT"]
[Termination "Game drawn by repetition"]

1. c4 {[%clk 0:02:55.8]} 1... e5 {[%clk 0:02:59.6]} 2. Nc3 {[%clk 0:02:53.9]}
2... Nf6 {[%clk 0:03:00]} 3. g3 {[%clk 0:02:49.8]} 3... d5 {[%clk 0:02:59.5]} 4.
cxd5 {[%clk 0:02:48.2]} 4... Nxd5 {[%clk 0:03:00.4]} 5. Bg2 {[%clk 0:02:48.3]}
5... Nb6 {[%clk 0:03:00.7]} 6. d3 {[%clk 0:02:47.9]} 6... Nc6 {[%clk 0:03:00.7]}
7. Nf3 {[%clk 0:02:48.5]} 7... Be7 {[%clk 0:03:00.3]} 8. O-O {[%clk 0:02:49.1]}
8... O-O {[%clk 0:03:00.9]} 9. a3 {[%clk 0:02:49.3]} 9... Be6 {[%clk 0:03:00.2]}
10. b4 {[%clk 0:02:47.7]} 10... f6 {[%clk 0:02:59.9]} 11. Be3 {[%clk 0:02:46.5]}
11... a5 {[%clk 0:02:59.2]} 12. b5 {[%clk 0:02:41]} 12... Nd4 {[%clk 0:02:59.1]}
13. Bxd4 {[%clk 0:02:36.9]} 13... exd4 {[%clk 0:03:00]} 14. Na4 {[%clk
0:02:37.5]} 14... Qd7 {[%clk 0:02:49.5]} 15. Nxb6 {[%clk 0:02:23.5]} 15... cxb6
{[%clk 0:02:50.4]} 16. Qa4 {[%clk 0:02:22.9]} 16... Bc5 {[%clk 0:02:43.7]} 17.
Nd2 {[%clk 0:02:21]} 17... Qf7 {[%clk 0:02:39.9]} 18. Rfc1 {[%clk 0:02:16.8]}
18... Rfe8 {[%clk 0:02:38.4]} 19. Bf3 {[%clk 0:02:17]} 19... Bd5 {[%clk
0:02:25.7]} 20. Bxd5 {[%clk 0:02:04.2]} 20... Qxd5 {[%clk 0:02:26.6]} 21. Qc4
{[%clk 0:01:59.9]} 21... Qxc4 {[%clk 0:02:24.8]} 22. Nxc4 {[%clk 0:01:56.3]}
22... Rxe2 {[%clk 0:02:23.9]} 23. Re1 {[%clk 0:01:57]} 23... Rxe1+ {[%clk
0:02:15.1]} 24. Rxe1 {[%clk 0:01:56.1]} 24... Kf7 {[%clk 0:02:16]} 25. Kf1
{[%clk 0:01:48.8]} 25... h5 {[%clk 0:01:57.2]} 26. a4 {[%clk 0:01:44.9]} 26...
Rh8 {[%clk 0:01:48.5]} 27. Rc1 {[%clk 0:01:26.7]} 27... Ra8 {[%clk 0:01:47.7]}
28. Ke2 {[%clk 0:01:18.6]} 28... Ke6 {[%clk 0:01:43.6]} 29. Kf3 {[%clk
0:01:18.4]} 29... Kd5 {[%clk 0:01:42.1]} 30. Re1 {[%clk 0:01:15.6]} 30... g5
{[%clk 0:01:35.6]} 31. h3 {[%clk 0:01:14.3]} 31... Rh8 {[%clk 0:01:17.8]} 32.
Re4 {[%clk 0:01:02.5]} 32... Rf8 {[%clk 0:01:06.2]} 33. h4 {[%clk 0:00:58.3]}
33... Rg8 {[%clk 0:00:51.8]} 34. hxg5 {[%clk 0:00:42.8]} 34... Rxg5 {[%clk
0:00:52.7]} 35. Rh4 {[%clk 0:00:40.6]} 35... Rf5+ {[%clk 0:00:51.7]} 36. Ke2
{[%clk 0:00:38.8]} 36... Ke6 {[%clk 0:00:46.4]} 37. f4 {[%clk 0:00:35.6]} 37...
Kf7 {[%clk 0:00:44]} 38. Kf3 {[%clk 0:00:35.4]} 38... Rd5 {[%clk 0:00:38.5]} 39.
Rh1 {[%clk 0:00:32.5]} 39... Kg6 {[%clk 0:00:36.2]} 40. Re1 {[%clk 0:00:32.1]}
40... Rd8 {[%clk 0:00:36]} 41. Re6 {[%clk 0:00:29.5]} 41... Kf7 {[%clk
0:00:34.1]} 42. Re1 {[%clk 0:00:27]} 42... Rh8 {[%clk 0:00:25.4]} 43. Rh1 {[%clk
0:00:26.9]} 43... Kg6 {[%clk 0:00:24]} 44. Ke4 {[%clk 0:00:23.3]} 44... Re8+
{[%clk 0:00:23.2]} 45. Kf3 {[%clk 0:00:23.6]} 45... Rh8 {[%clk 0:00:21.6]} 46.
Ke4 {[%clk 0:00:23.6]} 46... Re8+ {[%clk 0:00:21]} 47. Kf3 {[%clk 0:00:23.1]}
47... Rh8 {[%clk 0:00:18.9]} 1/2-1/2